fUSD/lending_fUSD_20240708
["ID","MTS","AMOUNT","RATE_DAILY","PERIOD"]
[331483049,1720438104327,-968.64,0.00050684,120]
[331483050,1720438104369,-1082.19,0.00050684,120]
[331483051,1720438104411,-500.0,0.00050684,120]
[331483052,1720438104452,-500.0,0.00050684,120]
[331483053,1720438104497,-500.0,0.00050684,120]
[331483054,1720438104539,-260.93396006,0.00050684,120]
[331483055,1720438104580,-1570.5,0.00050684,120]
[331483056,1720438104620,-500.0,0.00050684,120]
[331483057,1720438104660,-1935.41,0.00050684,120]
[331483058,1720438104700,-500.0,0.00050684,120]
[331483059,1720438104740,-1670.66,0.00050684,120]
[331483060,1720438104786,-500.0,0.00050684,120]
[331483061,1720438104827,-500.0,0.00050684,120]
[331483062,1720438104867,-5085.83,0.00050684,120]
[331483063,1720438104907,-498.55269581,0.00050684,120]
[331483064,1720438104949,-500.0,0.00050684,120]
[331483065,1720438104990,-500.0,0.00050684,120]
[331483066,1720438105030,-500.0,0.00050684,120]
[331483067,1720438105069,-500.0,0.00050684,120]
[331483068,1720438105109,-362.79937535,0.00050684,120]
[331483069,1720438105150,-500.0,0.00050684,120]
[331483070,1720438105191,-500.0,0.00050684,120]
[331483071,1720438105231,-600.72673341,0.00050684,120]
[331483072,1720438105276,-500.0,0.00050684,120]
[331483073,1720438105316,-771.26,0.00050684,120]
[331483074,1720438105357,-500.0,0.00050684,120]
[331483075,1720438105396,-500.0,0.00050684,120]
[331483076,1720438105436,-500.0,0.00050684,120]
[331483077,1720438105475,-20855.15,0.00050684,120]
[331483078,1720438105515,-813.82,0.00050684,120]
[331483079,1720438105555,-500.0,0.00050684,120]
[331483080,1720438105596,-500.0,0.00050684,120]
[331483081,1720438105638,-2200.14,0.00050684,120]
[331483082,1720438105680,-3881.42,0.00050684,120]
[331483083,1720438105720,-1256.69,0.00050684,120]
[331483084,1720438105760,-500.0,0.00050684,120]
[331483085,1720438105802,-1326.11,0.00050684,120]
[331483086,1720438105844,-500.0,0.00050684,120]
[331483087,1720438105886,-500.0,0.00050684,120]
[331483088,1720438105926,-1747.96,0.00050684,120]
[331483089,1720438105967,-500.0,0.00050684,120]
[331483090,1720438106005,-500.0,0.00050684,120]
[331483091,1720438106041,-500.0,0.00050684,120]
[331483092,1720438106079,-530.51,0.00050684,120]
[331483093,1720438106117,-10457.36,0.00050684,120]
[331483094,1720438106156,-500.0,0.00050684,120]
[331483095,1720438106192,-500.0,0.00050684,120]
[331483096,1720438106231,-497.03133282,0.00050684,120]
[331483097,1720438106273,-3955.09,0.00050684,120]
[331483098,1720438106311,-500.0,0.00050684,120]
[331483099,1720438106349,-500.0,0.00050684,120]
[331483100,1720438106387,-941.75,0.00050684,120]
[331483101,1720438106427,-500.0,0.00050684,120]
[331483102,1720438106466,-1163.07,0.00050684,120]
[331483103,1720438106504,-500.0,0.00050684,120]
[331483104,1720438106542,-500.0,0.00050684,120]
[331483105,1720438106582,-500.0,0.00050684,120]
[331483106,1720438106621,-500.0,0.00050684,120]
[331483107,1720438106663,-500.0,0.00050684,120]
[331483108,1720438106704,-915.13,0.00050684,120]
[331483109,1720438106742,-500.0,0.00050684,120]
[331483110,1720438106779,-4238.82,0.00050684,120]
[331483111,1720438106817,-532.42,0.00050684,120]
[331483112,1720438106855,-500.0,0.00050684,120]
[331483113,1720438106892,-3090.27,0.00050684,120]
[331483114,1720438106931,-500.0,0.00050684,120]
[331483115,1720438106969,-511.24,0.00050684,120]
[331483116,1720438107005,-5448.63,0.00050684,120]
[331483117,1720438107042,-2062.26,0.00050684,120]
[331483118,1720438107080,-277.05788899,0.00050684,120]
[331483119,1720438107116,-500.0,0.00050684,120]
[331483120,1720438107154,-2547.29,0.00050684,120]
[331483121,1720438107191,-4594.83,0.00050684,120]
[331483122,1720438107227,-500.0,0.00050684,120]
[331483123,1720438107266,-500.0,0.00050684,120]
[331483124,1720438107308,-1773.39,0.00050684,120]
[331483125,1720438107346,-722.73,0.00050684,120]
[331483126,1720438107381,-847.59,0.00050684,120]
[331483127,1720438107417,-8365.78,0.00050684,120]
[331483128,1720438107454,-500.0,0.00050684,120]
[331483129,1720438107489,-500.0,0.00050684,120]
[331483130,1720438107528,-962.79,0.00050684,120]
[331483131,1720438107568,-1826.77,0.00050684,120]
[331483132,1720438107608,-500.0,0.00050684,120]
[331483133,1720438107645,-500.0,0.00050684,120]
[331483134,1720438107686,-1768.04,0.00050684,120]
[331483135,1720438107724,-500.0,0.00050684,120]
[331483136,1720438107763,-1447.56,0.00050684,120]
[331483137,1720438107802,-4590.57,0.00050684,120]
[331483138,1720438107841,-1801.6,0.00050684,120]
[331483139,1720438107875,-500.0,0.00050684,120]
[331483140,1720438107911,-500.0,0.00050684,120]
[331483141,1720438107947,-2861.76,0.00050684,120]
[331483142,1720438107985,-1122.87,0.00050684,120]
[331483143,1720438108020,-500.0,0.00050684,120]
[331483144,1720438108056,-500.0,0.00050684,120]
[331483145,1720438108093,-6551.73,0.00050684,120]
[331483146,1720438108130,-526.91,0.00050684,120]
[331483147,1720438108165,-659.22,0.00050684,120]
[331483148,1720438108201,-500.0,0.00050684,120]
[331483149,1720438108235,-314.77,0.00050684,120]
[331483150,1720438108272,-605.1048981,0.00050684,120]
[331483151,1720438108307,-500.0,0.00050684,120]
[331483152,1720438108528,-500.0,0.00050684,120]
[331483153,1720438108565,-686.39,0.00050684,120]
[331483154,1720438108603,-1136.27,0.00050684,120]
[331483155,1720438108640,-3164.35,0.00050684,120]
[331483156,1720438108677,-505.54,0.00050684,120]
[331483157,1720438108715,-1162.49,0.00050684,120]
[331483158,1720438108754,-1906.95,0.00050684,120]
[331483159,1720438108790,-500.0,0.00050684,120]
[331483160,1720438108828,-1298.4,0.00050684,120]
[331483161,1720438108870,-1181.68,0.00050684,120]
[331483162,1720438108911,-500.0,0.00050684,120]
[331483163,1720438108950,-2349.1,0.00050684,120]
[331483164,1720438108991,-811.45,0.00050684,120]
[331483165,1720438109030,-211.67825643,0.00050684,120]
[331483166,1720438109069,-500.0,0.00050684,120]
[331483167,1720438109108,-500.0,0.00050684,120]
[331483168,1720438109147,-2038.75,0.00050684,120]
[331483169,1720438109189,-759.35,0.00050684,120]
[331483170,1720438109228,-1664.25,0.00050684,120]
[331483171,1720438109273,-362.32515639,0.00050684,120]
[331483172,1720438109312,-500.0,0.00050684,120]
[331483173,1720438109350,-309.55072232,0.00050707,60]
[331483174,1720438109389,-159.6669257,0.0005081,60]
[331483175,1720438109428,-152.22097569,0.0005081,60]
[331483176,1720438109467,-500.0,0.00050958,120]
[331483177,1720438109505,-500.0,0.00050958,120]
[331483178,1720438109541,-500.0,0.00050958,120]
[331483179,1720438109576,-633.31,0.00050958,120]
[331483180,1720438109611,-500.0,0.00050958,120]
[331483181,1720438109648,-500.0,0.00050958,120]
[331483182,1720438109688,-827.79,0.00050958,120]
[331483183,1720438109726,-1270.71,0.00050958,120]
[331483184,1720438109767,-2024.69,0.00050958,120]
[331483185,1720438109803,-500.0,0.00050958,120]
[331483186,1720438109841,-1741.22,0.00050958,120]
[331483187,1720438109879,-1241.64,0.00050958,120]
[331483188,1720438109917,-1264.41,0.00050958,120]
[331483189,1720438109955,-500.0,0.00050958,120]
[331483190,1720438109994,-812.78,0.00050958,120]
[331483191,1720438110034,-500.0,0.00050958,120]
[331483192,1720438110073,-500.0,0.00050958,120]
[331483193,1720438110113,-597.99,0.00050958,120]
[331483194,1720438110155,-500.0,0.00050958,120]
[331483195,1720438110194,-500.0,0.00050958,120]
[331483196,1720438110233,-365.25287124,0.00050958,120]
[331483197,1720438110276,-500.0,0.00050958,120]
[331483198,1720438110317,-592.5,0.00050958,120]
[331483199,1720438110356,-500.0,0.00050958,120]
[331483200,1720438110394,-500.0,0.00050958,120]
[331483201,1720438110437,-500.0,0.00050958,120]
[331483202,1720438110476,-500.0,0.00050958,120]
[331483203,1720438110515,-500.0,0.00050958,120]
[331483204,1720438110555,-1087.49,0.00050958,120]
[331483205,1720438110594,-602.54,0.00050958,120]
[331483206,1720438110635,-1694.76,0.00050958,120]
[331483207,1720438110676,-500.0,0.00050958,120]
[331483208,1720438110718,-978.12,0.00050958,120]
[331483209,1720438110758,-500.0,0.00050958,120]
[331483210,1720438110798,-1886.47,0.00050958,120]
[331483211,1720438110839,-1514.14,0.00050958,120]
[331483212,1720438110877,-500.0,0.00050958,120]
[331483213,1720438110915,-500.0,0.00050958,120]
[331483214,1720438110953,-500.0,0.00050958,120]
[331483215,1720438110990,-500.0,0.00050958,120]
[331483216,1720438111028,-612.16,0.00050958,120]
[331483217,1720438111066,-500.0,0.00050958,120]
[331483218,1720438111102,-859.41,0.00050958,120]
[331483219,1720438111139,-715.44,0.00050958,120]
[331483220,1720438111180,-500.0,0.00050958,120]
[331483221,1720438111219,-1041.8,0.00050958,120]
[331483222,1720438111261,-500.0,0.00050958,120]
[331483223,1720438111302,-500.0,0.00050958,120]
[331483224,1720438111341,-1826.92,0.00050958,120]
[331483225,1720438111380,-507.78355096,0.00050958,120]
[331483226,1720438111418,-611.62,0.00050958,120]
[331483227,1720438111457,-500.0,0.00050958,120]
[331483228,1720438111496,-595.36740355,0.00050958,120]
[331483229,1720438111533,-500.0,0.00050958,120]
[331483230,1720438111570,-500.0,0.00050958,120]
[331483231,1720438111609,-500.0,0.00050958,120]
[331483232,1720438111647,-500.0,0.00050958,120]
[331483233,1720438111687,-2300.26,0.00050958,120]
[331483234,1720438111725,-500.0,0.00050958,120]
[331483235,1720438111761,-500.0,0.00050958,120]
[331483236,1720438111796,-500.0,0.00050958,120]
[331483237,1720438111832,-500.0,0.00050958,120]
[331483238,1720438111868,-2614.96,0.00050958,120]
[331483239,1720438111905,-500.0,0.00050958,120]
[331483240,1720438111943,-500.0,0.00050958,120]
[331483241,1720438111978,-2148.51,0.00050958,120]
[331483242,1720438112013,-500.0,0.00050958,120]
[331483243,1720438112048,-500.0,0.00050958,120]
[331483244,1720438112082,-633.82,0.00050958,120]
[331483245,1720438112116,-1837.33,0.00050958,120]
[331483246,1720438112150,-500.0,0.00050958,120]
[331483247,1720438112186,-500.0,0.00050958,120]
[331483248,1720438112222,-500.0,0.00050958,120]
[331483249,1720438112260,-500.0,0.00050958,120]
[331483250,1720438112295,-522.56,0.00050958,120]
[331483251,1720438112334,-500.0,0.00050958,120]
[331483252,1720438112370,-500.0,0.00050958,120]
[331483253,1720438112410,-500.0,0.00050958,120]
[331483254,1720438112447,-1448.04,0.00050958,120]
[331483255,1720438112481,-2564.45,0.00050958,120]
[331483256,1720438112700,-852.59,0.00050958,120]
[331483257,1720438112738,-2132.97,0.00050958,120]
[331483258,1720438112772,-500.0,0.00050958,120]
[331483259,1720438112806,-331.46912788,0.00050958,120]
[331483260,1720438112839,-500.0,0.00050958,120]
[331483261,1720438112873,-500.0,0.00050958,120]
[331483262,1720438112908,-679.05,0.00050958,120]
[331483263,1720438112942,-500.0,0.00050958,120]
[331483264,1720438112977,-2109.64,0.00050958,120]
[331483265,1720438113011,-600.73,0.00050958,120]
[331483266,1720438113043,-578.68,0.00050958,120]
[331483267,1720438113076,-1115.3,0.00050958,120]
[331483268,1720438113110,-500.0,0.00050958,120]
[331483269,1720438113143,-500.0,0.00050958,120]
[331483270,1720438113176,-1725.52,0.00050958,120]
[331483271,1720438113212,-500.0,0.00050958,120]
[331483272,1720438113245,-1003.07,0.00050958,120]
[331483273,1720438113281,-723.07,0.00050958,120]
[331483274,1720438113316,-500.0,0.00050958,120]
[331483275,1720438113349,-981.91,0.00050958,120]
[331483276,1720438113384,-500.0,0.00050958,120]
[331483277,1720438113419,-500.0,0.00050958,120]
[331483278,1720438113454,-622.24,0.00050958,120]
[331483279,1720438113490,-500.0,0.00050958,120]
[331483280,1720438113525,-500.0,0.00050958,120]
[331483281,1720438113559,-500.0,0.00050958,120]
[331483282,1720438113595,-745.91,0.00050958,120]
[331483283,1720438113632,-500.0,0.00050958,120]
[331483284,1720438113669,-594.32,0.00050958,120]
[331483285,1720438113710,-870.94,0.00050958,120]
[331483286,1720438113747,-623.11,0.00050958,120]
[331483287,1720438113784,-500.0,0.00050958,120]
[331483288,1720438113822,-1347.4,0.00050958,120]
[331483289,1720438113863,-500.0,0.00050958,120]
[331483290,1720438113904,-500.0,0.00050958,120]
[331483291,1720438113945,-652.48,0.00050958,120]
[331483292,1720438113985,-560.3,0.00050958,120]
[331483293,1720438114022,-500.0,0.00050958,120]
[331483294,1720438114062,-978.58,0.00050958,120]
[331483295,1720438114104,-1040.65,0.00050958,120]
[331483296,1720438114143,-2087.12,0.00050958,120]
[331483297,1720438114184,-500.0,0.00050958,120]
[331483299,1720438114225,-500.0,0.00050958,120]
[331483300,1720438114268,-555.79,0.00050958,120]
[331483301,1720438114309,-1043.43,0.00050958,120]
[331483302,1720438114351,-500.0,0.00050958,120]
[331483303,1720438114389,-1696.47,0.00050958,120]
[331483305,1720438114428,-500.0,0.00050958,120]
[331483306,1720438114469,-500.0,0.00050958,120]
[331483307,1720438114506,-500.0,0.00050958,120]
[331483308,1720438114543,-500.0,0.00050958,120]
[331483309,1720438114580,-1292.22,0.00050958,120]
[331483310,1720438114619,-500.0,0.00050958,120]
[331483311,1720438114654,-557.25,0.00050958,120]
[331483312,1720438114691,-1700.15,0.00050958,120]
[331483313,1720438114729,-500.0,0.00050958,120]
[331483314,1720438114766,-653.46,0.00050958,120]
[331483315,1720438114803,-500.0,0.00050958,120]
[331483316,1720438114840,-1020.7,0.00050958,120]
[331483317,1720438114877,-731.92,0.00050958,120]
[331483318,1720438114914,-515.36,0.00050958,120]
[331483319,1720438114953,-500.0,0.00050958,120]
[331483320,1720438114992,-500.0,0.00050958,120]
[331483321,1720438115029,-1070.52,0.00050958,120]
[331483322,1720438115065,-783.21,0.00050958,120]
[331483323,1720438115100,-500.0,0.00050958,120]
[331483324,1720438115134,-500.0,0.00050958,120]
[331483325,1720438115169,-1354.07,0.00050958,120]
[331483326,1720438115205,-813.62,0.00050958,120]
[331483327,1720438115243,-1435.39,0.00050958,120]
[331483328,1720438115280,-564.74,0.00050958,120]
[331483329,1720438115316,-500.0,0.00050958,120]
[331483330,1720438115351,-500.0,0.00050958,120]
[331483331,1720438115387,-500.0,0.00050958,120]
[331483332,1720438115423,-500.0,0.00050958,120]
[331483333,1720438115459,-763.67,0.00050958,120]
[331483334,1720438115498,-2022.23,0.00050958,120]
[331483335,1720438115538,-500.0,0.00050958,120]
[331483336,1720438115578,-500.0,0.00050958,120]
[331483337,1720438115618,-500.0,0.00050958,120]
[331483338,1720438115660,-500.0,0.00050958,120]
[331483339,1720438115699,-500.0,0.00050958,120]
[331483340,1720438115738,-524.75,0.00050958,120]
[331483341,1720438115778,-2292.61,0.00050958,120]
[331483342,1720438115817,-1256.24,0.00050958,120]
[331483343,1720438115854,-1240.02,0.00050958,120]
[331483344,1720438115891,-500.0,0.00050958,120]
[331483345,1720438115928,-2191.34,0.00050958,120]
[331483346,1720438115964,-500.0,0.00050958,120]
[331483347,1720438116001,-526.64,0.00050958,120]
[331483348,1720438116039,-500.0,0.00050958,120]
[331483349,1720438116076,-518.09,0.00050958,120]
[331483350,1720438116115,-500.0,0.00050958,120]
[331483351,1720438116155,-500.0,0.00050958,120]
[331483352,1720438116193,-500.0,0.00050958,120]
[331483353,1720438116235,-500.0,0.00050958,120]
[331483354,1720438116279,-500.0,0.00050958,120]
[331483355,1720438116318,-500.0,0.00050958,120]
[331483356,1720438116358,-500.0,0.00050958,120]
[331483357,1720438116397,-500.0,0.00050958,120]
[331483358,1720438116438,-500.0,0.00050958,120]
[331483359,1720438116480,-1483.16,0.00050958,120]
[331483360,1720438116520,-729.55,0.00050958,120]
[331483361,1720438116560,-500.0,0.00050958,120]
[331483362,1720438116782,-581.75,0.00050958,120]
[331483363,1720438116823,-500.0,0.00050958,120]
[331483364,1720438116863,-500.0,0.00050958,120]
[331483365,1720438116903,-500.0,0.00050958,120]
[331483366,1720438116944,-1051.68,0.00050958,120]
[331483367,1720438116983,-500.0,0.00050958,120]
[331483368,1720438117021,-500.0,0.00050958,120]
[331483369,1720438117059,-500.0,0.00050958,120]
[331483370,1720438117095,-500.0,0.00050958,120]
[331483371,1720438117131,-500.0,0.00050958,120]
[331483372,1720438117169,-553.77,0.00050958,120]
[331483373,1720438117204,-500.0,0.00050958,120]
[331483374,1720438117244,-790.33,0.00050958,120]
[331483375,1720438117283,-625.62,0.00050958,120]
[331483376,1720438117321,-755.84,0.00050958,120]
[331483377,1720438117357,-1285.43,0.00050958,120]
[331483378,1720438117394,-500.0,0.00050958,120]
[331483379,1720438117433,-500.0,0.00050958,120]
[331483380,1720438117471,-838.12,0.00050958,120]
[331483381,1720438117512,-500.0,0.00050958,120]
[331483382,1720438117551,-500.0,0.00050958,120]
[331483383,1720438117589,-500.0,0.00050958,120]
[331483384,1720438117627,-1091.2,0.00050958,120]
[331483385,1720438117663,-500.0,0.00050958,120]
[331483386,1720438117700,-757.21,0.00050958,120]
[331483387,1720438117737,-500.0,0.00050958,120]
[331483388,1720438117774,-500.0,0.00050958,120]
[331483389,1720438117811,-1418.14,0.00050958,120]
[331483390,1720438117847,-664.42,0.00050958,120]
[331483391,1720438117882,-529.96,0.00050958,120]
[331483392,1720438117916,-624.06,0.00050958,120]
[331483393,1720438117953,-500.0,0.00050958,120]
[331483394,1720438117989,-500.0,0.00050958,120]
[331483395,1720438118026,-1837.3,0.00050958,120]
[331483396,1720438118064,-1202.89,0.00050958,120]
[331483397,1720438118100,-500.0,0.00050958,120]
[331483398,1720438118135,-973.5,0.00050958,120]
[331483399,1720438118170,-500.0,0.00050958,120]
[331483400,1720438118205,-500.0,0.00050958,120]
[331483401,1720438118244,-500.0,0.00050958,120]
[331483402,1720438118282,-1140.41,0.00050958,120]
[331483403,1720438118318,-3258.9,0.00050958,120]
[331483404,1720438118355,-909.76,0.00050958,120]
[331483405,1720438118391,-500.0,0.00050958,120]
[331483406,1720438118427,-500.0,0.00050958,120]
[331483407,1720438118465,-531.73,0.00050958,120]
[331483408,1720438118500,-500.0,0.00050958,120]
[331483409,1720438118536,-1448.05,0.00050958,120]
[331483410,1720438118574,-1331.04,0.00050958,120]
[331483411,1720438118611,-500.0,0.00050958,120]
[331483412,1720438118647,-500.0,0.00050958,120]
[331483413,1720438118687,-673.04,0.00050958,120]
[331483414,1720438118723,-907.76,0.00050958,120]
[331483415,1720438118761,-500.0,0.00050958,120]
[331483416,1720438118803,-500.0,0.00050958,120]
[331483417,1720438118841,-997.68,0.00050958,120]
[331483418,1720438118886,-500.0,0.00050958,120]
[331483419,1720438118929,-500.0,0.00050958,120]
[331483420,1720438118971,-500.0,0.00050958,120]
[331483421,1720438119011,-500.0,0.00050958,120]
[331483422,1720438119055,-500.0,0.00050958,120]
[331483423,1720438119107,-1517.56,0.00050958,120]
[331483424,1720438119159,-500.0,0.00050958,120]
[331483425,1720438119209,-646.53,0.00050958,120]
[331483426,1720438119259,-500.0,0.00050958,120]
[331483427,1720438119307,-500.0,0.00050958,120]
[331483428,1720438119356,-580.66,0.00050958,120]
[331483429,1720438119402,-766.18,0.00050958,120]
[331483430,1720438119449,-612.85,0.00050958,120]
[331483431,1720438119496,-2991.81,0.00050958,120]
[331483432,1720438119542,-1069.21,0.00050958,120]
[331483433,1720438119590,-949.68,0.00050958,120]
[331483434,1720438119635,-2078.73,0.00050958,120]
[331483435,1720438119683,-587.75,0.00050958,120]
[331483436,1720438119730,-606.14,0.00050958,120]
[331483437,1720438119776,-1492.0,0.00050958,120]
[331483438,1720438119823,-500.0,0.00050958,120]
[331483439,1720438119870,-2128.57,0.00050958,120]
[331483440,1720438119918,-500.0,0.00050958,120]
[331483441,1720438119969,-565.06,0.00050958,120]
[331483442,1720438120016,-500.0,0.00050958,120]
[331483443,1720438120065,-500.0,0.00050958,120]
[331483444,1720438120113,-500.0,0.00050958,120]
[331483445,1720438120162,-507.23884533,0.00050958,120]
[331483446,1720438120211,-500.0,0.00050958,120]
[331483447,1720438120260,-522.56,0.00050958,120]
[331483448,1720438120306,-754.88,0.00050958,120]
[331483449,1720438120352,-537.16,0.00050958,120]
[331483450,1720438120397,-500.0,0.00050958,120]
[331483451,1720438120447,-500.0,0.00050958,120]
[331483452,1720438120491,-500.0,0.00050958,120]
[331483453,1720438120536,-500.0,0.00050958,120]
[331483454,1720438120582,-500.0,0.00050958,120]
[331483455,1720438120626,-3776.54,0.00050958,120]
[331483456,1720438120672,-1795.75,0.00050958,120]
[331483457,1720438120718,-500.0,0.00050958,120]
[331483458,1720438120762,-754.18,0.00050958,120]
[331483459,1720438120811,-500.0,0.00050958,120]
[331483460,1720438120859,-500.0,0.00050958,120]
[331483461,1720438120905,-500.0,0.00050958,120]
[331483462,1720438120953,-500.0,0.00050958,120]
[331483463,1720438120996,-500.0,0.00050958,120]
[331483464,1720438121040,-500.0,0.00050958,40]
[331483465,1720438121082,-500.0,0.00050958,120]
[331483466,1720438121306,-354.79664274,0.00050958,120]
[331483467,1720438121347,-1684.15,0.00050958,120]
[331483468,1720438121388,-500.0,0.00050958,120]
[331483469,1720438121428,-639.54,0.00050958,120]
[331483470,1720438121470,-500.0,0.00050958,120]
[331483471,1720438121511,-500.0,0.00050958,120]
[331483472,1720438121553,-500.0,0.00050958,120]
[331483473,1720438121596,-1793.9,0.00050958,120]
[331483474,1720438121642,-500.0,0.00050958,120]
[331483475,1720438121691,-500.0,0.00050958,120]
[331483476,1720438121734,-1733.81,0.00050958,120]
[331483477,1720438121782,-626.58,0.00050958,120]
[331483478,1720438121826,-500.0,0.00050958,120]
[331483479,1720438121869,-1653.08,0.00050958,120]
[331483480,1720438121914,-738.49,0.00050958,120]
[331483481,1720438121956,-500.0,0.00050958,120]
[331483482,1720438121997,-500.0,0.00050958,120]
[331483483,1720438122038,-437.65380672,0.00050958,120]
[331483484,1720438122080,-500.0,0.00050958,120]
[331483485,1720438122121,-500.0,0.00050958,120]
[331483486,1720438122164,-500.0,0.00050958,120]
[331483487,1720438122205,-515.53,0.00050958,120]
[331483488,1720438122248,-500.0,0.00050958,120]
[331483489,1720438122288,-1557.0,0.00050958,120]
[331483490,1720438122329,-802.08,0.00050958,120]
[331483491,1720438122368,-684.17,0.00050958,120]
[331483492,1720438122412,-514.90585325,0.00050958,120]
[331483493,1720438122457,-500.0,0.00050958,120]
[331483494,1720438122498,-3130.17,0.00050958,120]
[331483495,1720438122540,-500.0,0.00050958,120]
[331483496,1720438122582,-532.95,0.00050958,120]
[331483497,1720438122625,-500.0,0.00050958,120]
[331483498,1720438122668,-502.08,0.00050958,120]
[331483499,1720438122710,-500.0,0.00050958,120]
[331483500,1720438122756,-500.0,0.00050958,120]
[331483501,1720438122799,-1335.76,0.00050958,120]
[331483502,1720438122843,-626.33,0.00050958,120]
[331483503,1720438122885,-1278.56,0.00050958,120]
[331483504,1720438122923,-795.89,0.00050958,120]
[331483505,1720438122961,-500.0,0.00050958,120]
[331483506,1720438123000,-1183.41,0.00050958,120]
[331483507,1720438123037,-500.0,0.00050958,120]
[331483508,1720438123075,-500.0,0.00050958,120]
[331483509,1720438123112,-500.0,0.00050958,120]
[331483510,1720438123148,-500.0,0.00050958,120]
[331483511,1720438123188,-500.0,0.00050958,120]
[331483512,1720438123224,-500.0,0.00050958,120]
[331483513,1720438123261,-500.0,0.00050958,120]
[331483514,1720438123298,-500.0,0.00050958,120]
[331483516,1720438123334,-500.0,0.00050958,120]
[331483518,1720438123371,-500.0,0.00050958,120]
[331483519,1720438123411,-500.0,0.00050958,120]
[331483520,1720438123449,-500.0,0.00050958,120]
[331483521,1720438123488,-500.0,0.00050958,120]
[331483522,1720438123526,-350.98,0.00050958,120]
[331483523,1720438123565,-500.0,0.00050958,120]
[331483524,1720438123604,-3526.41,0.00050958,120]
[331483525,1720438123645,-1599.68,0.00050958,120]
[331483526,1720438123686,-500.0,0.00050958,120]
[331483527,1720438123727,-697.42,0.00050958,120]
[331483528,1720438123768,-587.27,0.00050958,120]
[331483529,1720438123809,-500.0,0.00050958,120]
[331483530,1720438123850,-500.0,0.00050958,120]
[331483531,1720438123892,-500.0,0.00050958,120]
[331483532,1720438123934,-1492.66,0.00050958,120]
[331483533,1720438123977,-2679.44,0.00050958,120]
[331483534,1720438124020,-527.7,0.00050958,120]
[331483535,1720438124062,-3645.63,0.00050958,120]
[331483536,1720438124105,-500.0,0.00050958,120]
[331483537,1720438124146,-500.0,0.00050958,120]
[331483538,1720438124189,-500.0,0.00050958,120]
[331483539,1720438124228,-893.27,0.00050958,120]
[331483540,1720438124270,-667.35,0.00050958,120]
[331483541,1720438124315,-591.72,0.00050958,120]
[331483542,1720438124358,-500.0,0.00050958,120]
[331483543,1720438124399,-500.0,0.00050958,120]
[331483544,1720438124441,-510.27,0.00050958,120]
[331483545,1720438124484,-702.49,0.00050958,120]
[331483546,1720438124527,-687.27,0.00050958,120]
[331483547,1720438124567,-500.0,0.00050958,120]
[331483548,1720438124609,-500.0,0.00050958,120]
[331483549,1720438124651,-500.0,0.00050958,120]
[331483550,1720438124692,-500.0,0.00050958,120]
[331483551,1720438124733,-500.0,0.00050958,120]
[331483552,1720438124775,-577.52,0.00050958,120]